{"text_format":"1","workbook":"xlsx","n_sheets":8,"sheets":["Green Star SA","Introduction","How to Use","Disclaimer","Change Log","Pre-Submission Checklist","Applicant Declaration","Score Sheet"],"not_rendered":{"charts":0,"images":10,"macros":1,"external_links":2,"defined_names":284,"comments":0,"pivot_tables":0},"unopened":[],"bounds":{"document_bytes":16777216,"sheet_cells":100000,"rows_first":2000,"rows_last":500,"rows_between":2000,"halvings":0,"cell_chars":16384,"cell_head_chars":4096},"cells_cut":0,"cells_raw":0,"read":"whole","date_system":"1900"}

{"sheet":"Green Star SA","index":0,"n_rows":17,"n_cols":2,"rows_kept":17,"cut":false,"hidden":false,"merged":[]}
[]
[]
[]
[]
[]
[]
[]
[]
[null,"Green Star SA - Existing Building Performance v1 validates the environmental performance of existing buildings in operation.  "]
[]
[null,"You are invited to use Green Star SA - Existing Building Performance v1 to predict a Green Star SA rating.  The Green Building Council of South Africa (GBCSA) does not endorse any self-assessed rating and you are prohibited from presenting self-assessment results in the public domain.  This service provides for independent third party review of points claimed to ensure all points can be demonstrated to be achieved by the provision of the necessary documentary evidence.  The use of Green Star SA - Existing Building Performance v1 without formal certification by the GBCSA does not entitle the user or any other party to promote a Green Star SA rating publicly.  "]
[]
[null,"Use the tabs at the bottom of the pages to navigate."]
[]
[null,"© Green Building Council of South Africa "]
[null,"Last Modified: November 2014"]
[null,"Sponsored by:"]

{"sheet":"Introduction","index":1,"n_rows":77,"n_cols":2,"rows_kept":77,"cut":false,"hidden":false,"merged":[]}
[]
[]
[null,"Green Star SA - Existing Building Performance v1"]
[]
[]
[]
[null,"Introduction to Green Star SA - Existing Building Performance v1"]
[]
[]
[]
[null,"What is Green Star SA?"]
[]
[null,"What does Green Star SA - Existing Building Performance v1 do?"]
[]
[null,"Who can use Green Star SA - Existing Building Performance v1?"]
[]
[null,"What do Green Star SA - Existing Building Performance ratings mean?"]
[]
[null,"Acknowledgements"]
[]
[]
[]
[]
[]
[null,"What is Green Star SA?"]
[null,"The Green Star SA environmental rating system for buildings was developed by the Green Building Council of South Africa (GBCSA).  Green Star SA is a comprehensive rating system for evaluating the environmental design and performance of South African buildings based on a number of criteria, including energy and water efficiency, indoor environment quality and resource conservation. "]
[]
[null,"The Green Star SA environmental rating system is based upon the Australian Green Star system and has been customised for the South African environment by the GBCSA, under licence from the Green Building Council of Australia."]
[null,"Green Star SA has built on existing systems and tools in overseas markets, primarily the Australian Green Star system, but also including the British Building Research Establishment Environmental Assessment Method (BREEAM) system and the North American Leadership in Energy and Environmental Design (LEED) system.  Environmental measurement criteria relevant to the South African marketplace and environmental context have been created."]
[]
[null,"The Green Star rating system was created to:"]
[]
[null,"•  establish a common language and standard of measurement for green buildings; "]
[null,"•  promote integrated, whole-building design and operation; "]
[null,"•  raise awareness of green building benefits;"]
[null,"•  recognise and reward environmental leadership; and "]
[null,"•  reduce the environmental impact of development. "]
[]
[]
[]
[null,"What does Green Star SA - Existing Building Performance v1 do?"]
[]
[null,"Green Star SA - Existing Building Performance v1 validates the environmental performance of existing buildings in operation.  "]
[]
[]
[]
[null,"Who can use Green Star SA - Existing Building Performance v1?"]
[null,"The GBCSA encourages all interested parties to use Green Star SA - Existing Building Performance v1 to validate the environmental performance of existing buildings. The use of Green Star SA - Existing Building Performance v1 is encouraged on all such projects to assess and improve their environmental performance.  "]
[]
[null,"The use of Green Star SA - Existing Building Performance v1 without formal certification by the GBCSA does not entitle the user or any other party to promote the Green Star rating achieved.  No fee is payable to the GBCSA for such use, however formal recognition of the Green Star SA rating - and the right to promote the same - requires undertaking the formal certification process offered by the GBCSA."]
[]
[]
[]
[null,"What do Green Star SA Existing Building Performance ratings mean?"]
[null,"Green Star SA rating tools use six stars to measure performance. Star ratings are represented as follows under the rating tool:"]
[null,"•  1-2 Star Green Star Certified Rating acknowledges being \"On the Journey to a Better, Greener Building\";  "]
[null,"•  3 Star Green Star Certified Rating acknowledges \"Good Practice\","]
[null,"•  4 Star Green Star Certified Rating recognises and rewards \"Best Practice\";  "]
[null,"•  5 Star Green Star Certified Rating recognises and rewards \"South African Excellence\"; and "]
[null,"•  6 Star Green Star Certified Rating recognises and rewards \"World Leadership\".  "]
[]
[]
[null,"Again, the use of Green Star SA - Existing Building Performance v1 without formal certification by the GBCSA does not entitle the user or any other party to promote a Green Star SA rating publicly."]
[]
[]
[]
[]
[null,"Acknowledgements"]
[null,"The Green Building Council would like to acknowledge all parties that worked on and supported the development of the Green Star SA – Existing Building Performance v1 rating tool. "]
[]
[null,"The GBCSA thanks all those individuals and organisations who provided feedback and expertise to the technical development of the Green Star SA – Existing Building Performance v1 rating tool.  In particular, the GBCSA would like to thank all Technical Steering Committee and Technical Working Group members, as well as technical consultants Royal HaskoningDHV and Ecocentric.  The GBCSA also acknowledges the support of the Green Building Council of Australia."]
[]
[null,"The Green Star SA - Existing Building Performance v1 tool sponsor Nedbank Corporate, provided much-needed financial support to develop the rating tool.  "]
[]
[null,"Green Star SA – Existing Building Performance v1 is based on national and international guidelines, including primarily the Australian Green Star system, as well as the US LEED Green Building Rating System and UK's BREEAM Environmental Assessment Method."]
[]
[null,"Green Star SA - Existing Building Performance v1 Tool Sponsor:"]

{"sheet":"How to Use","index":2,"n_rows":21,"n_cols":2,"rows_kept":21,"cut":false,"hidden":false,"merged":[]}
[]
[]
[null,"Green Star SA - Existing Building Performance v1"]
[]
[]
[]
[null,"How to use this tool"]
[]
[]
["1.","A Summary of the credits and points available can be seen on the 'Scorecard' tab. You may enter your 'Points Targeted' to receive an indication of the score (and rating) you may receive."]
[]
["2.","Detailed information on what is required to achieve each credit is given in the Technical Manual available for download from the GBCSA's website (www.gbcsa.org.za)."]
[]
["3.","In the introductory section of the 'Technical Manual' there is a section on 'Eligibility'. If the project meets these eligibility requirements, it may proceed to registration. Register your project via the GBCSA website."]
[]
["4.","The GBCSA's Online Certification Engine will be used to register a project and step you through the process of demonstrating compliance and submitting your project documents for formal assessment. Ensure that this general spreadsheet is included in your submission under the 'General' section on the Certification Engine. Projects can access the Certification Enigne and register via the GBCSA website."]
[]
[null,"NOTE: The Green Star SA - Existing Building Performance v1 should be used together with the Green Star SA - Existing Building Performance v1 Technical Manual and the definitions contained therein. "]
[null,"Limitations"]
[null,"The GBCSA does not endorse any self-assessed rating achieved by the use of Green Star SA - Existing Building Performance v1.  This service provides for independent third party review of points claimed to ensure all points can be demonstrated to be achieved by the provision of the necessary documentary evidence.  The use of Green Star SA - Existing Building Performance v1 without formal certification does not entitle the user or any other party to promote the Green Star SA rating achieved."]
[null,"The application of Green Star SA - Existing Building Performance v1 to all existing buildings is encouraged to assess and improve their environmental performance.  No fee is payable to the GBCSA for such use, however formal recognition of the Green Star SA rating - and the right to promote the same - requires undertaking the formal certification process offered by the GBCSA."]

{"sheet":"Disclaimer","index":3,"n_rows":30,"n_cols":2,"rows_kept":30,"cut":false,"hidden":false,"merged":[]}
[]
[]
[null,"Green Star SA - Existing Building Performance v1"]
[]
[]
[]
[null,"Disclaimer"]
[]
[]
[null,"Authorisation, Acknowledgement and Disclaimer"]
[null,"The Green Star SA environmental rating system for buildings (“Green Star SA”) and the Green Star SA – Existing Building Performance rating tool (“Green Star SA – Existing Building Performance”) have been developed by the Green Building Council of South Africa (“GBCSA”).  Green Star SA – Existing Building Performance v1 is intended for use by building owners, managers and other interested parties to validate the environmental performance of buildings in operation.  As with all Green Star SA rating tools, Green Star SA - Existing Building Performance v1 may be subject to further development in the future."]
[]
[null,"Green Star SA and Green Star SA - Existing Building Performance v1 have been developed with the assistance and participation of representatives from many organisations. The views and opinions expressed have been determined upon by the GBCSA and its Committees."]
[]
[null,"The GBCSA authorises you to view and use Green Star SA - Existing Building Performance v1 for information purposes only.  In exchange for this authorisation, you agree that the GBCSA retains all copyright and other proprietary rights contained in and in relation to Green Star SA - Existing Building Performance v1 and agree not to sell, let, distribute, modify, or use for another purpose the tool or to reproduce, display or distribute the tool in any way for any public or commercial purpose, including display on a website or in a networked environment. Unauthorised use of Green Star SA and/or Green Star SA - Existing Building Performance v1 will violate copyright and other laws, and is prohibited.  All text, graphics, layout and other elements of content contained in Green Star SA and its rating tools are owned by the GBCSA and are protected by copyright, trade mark and other laws."]
[]
[null,"The GBCSA does not accept responsibility, including for negligence, for any inaccuracy, error or omission within Green Star SA and/or its rating tools and makes no warranty, expressed or implied, including the warranties of merchantability and fitness for a particular purpose, nor assumes any legal liability or responsibility to you or any third parties for the accuracy, completeness, use of or reliance on any information contained in Green Star SA and/or Green Star SA – Existing Building Performance v1, or for any injuries, losses or damages (including, without limitation, equitable relief and economic loss) arising out of such use or reliance."]
[]
[]
[null,"Green Star SA and Green Star SA - Existing Building Performance v1 are not substitutes for professional advice, nor do they purport to be a professional service.  You should seek your own professional and other appropriate advice on the matters addressed by them."]
[]
[null,"As a condition of use, you undertake not to institute legal proceedings in whatever form against the trade mark and copyright proprietor, and agree to waive and release the GBCSA, its officers, agents, employees and its members from any and all claims, demands and causes of action for any injury, loss, destruction or damage (including, without limitation, equitable relief and economic loss) that you may now or hereafter have a right to assert against such parties as a result of your use of, or reliance on, Green Star SA and/or Green Star SA – Existing Building Performance v1."]
[]
[null,"The GBCSA does not endorse or otherwise acknowledge the Green Star SA rating achieved by the use of Green Star SA – Existing Building Performance v1.  The service provides for independent third party review of points claimed to ensure all credits can be demonstrated to be achieved by the provision of the necessary documentary evidence.  The use of Green Star SA - Existing Building Performance v1 without formal certification by the GBCSA does not entitle the user or any other party to promote the achieved Green Star SA rating or make use of the Green Star trade marks in whatever manner or form. "]
[]
[null,"The application of Green Star SA - Existing Building Performance v1 to all existing buildings is encouraged to assess and improve their environmental performance.  No fee is payable to the GBCSA for such use, however formal recognition of the Green Star SA rating - and the right to promote the same - requires undertaking the formal certification process offered by the GBCSA."]
[]
[null,"You are only authorised to proceed to use Green Star SA and Green Star SA – Existing Building Performance v1 on this basis."]
[]
[null,"© 2014 Green Building Council of South Africa.  All rights reserved."]

{"sheet":"Change Log","index":4,"n_rows":20,"n_cols":3,"rows_kept":20,"cut":false,"hidden":false,"merged":[[17,1,17,2]]}
[]
[]
[null,"Green Star SA - Existing Building Performance v1"]
[]
[]
[]
[null,"Change Log"]
[]
[]
[null,"Green Star SA Existing Building Performance v1 Tool Release Date:"]
[]
[null,"first realease: 2014-11"]
[]
[]
[]
[null,"Changes & Amendments"]
[]
[null,"The GBCSA  reserves the right to correct errors and omissions in the Green Star SA - Existing Building Performance v1 rating tool as necessary. The changes noted in this change log also do not represent changes to points awarded for credits, or changes to credit criteria. The changes noted below are those of minor nature related to the operation of the rating tool and associated calculators.  "]
[]
[null,"Reissue Date","Changes"]

{"sheet":"Pre-Submission Checklist","index":5,"n_rows":49,"n_cols":8,"rows_kept":49,"cut":false,"hidden":false,"merged":[[7,1,7,4],[48,1,48,4],[55,1,55,4]]}
[]
[null,null,null,null,null,null,null,"Please Confirm"]
[null,"Green Star SA - Existing Building Performance v1",null,null,null,null,null,"YES"]
[null,null,null,null,null,null,null,"NO"]
[]
[]
[null,"Pre-Submission Checklist (Round 1 & Round 2)"]
[null,"Please complete the white cells only below, and submit the completed submission only if all aspects have been addressed."]
[]
[]
[null,null,"Administration"]
[null,1,"Signed Certification Agreement has been received by the GBCSA","Please Confirm"]
[null,2,"The correct and full assessment fee has been received by the GBCSA","Please Confirm"]
[null,3,"No Credit Interpretation Requests or Technical Clarifications are outstanding","Please Confirm"]
[null,4,"The project is registered for the correct version of Green Star SA rating tool in question","Please Confirm"]
[]
[null,null,"Eligibility"]
[null,5,"In the projects opinion, the project meets the following Eligibility Criteria:"]
[null,6,"Eligibility Criteria 1: Spatial differentiation","Please Confirm"]
[null,7,"Eligibility Criteria 2: Space use","Please Confirm"]
[null,8,"Eligibility Criteria 3: Conditional Requirement Green Star SA - EBP Accredited Professional","Please Confirm"]
[null,9,"Eligibility Criteria 4: Timing of Certification","Please Confirm"]
[null," "]
[null," ","Submission content and presentation"]
[null,10,"All files are in PDF format only and unlocked, in one layer. (except for calculators in excel format)","Please Confirm"]
[null,11,"Bookmarks have been added for each documentation requirement in the individual credit pdf files","Please Confirm"]
[null,12,"Relevant sections of the documentation and drawings have been highlighted to draw the assessors attention to relevant information","Please Confirm"]
[null,13,"A general section is included to provide an overview of the project, including completion of this excel document as well as an area schedule of Gross Lettable Area and a drawing outlining the extent of the building and Green Star SA project site that ties in with the area schedule","Please Confirm"]
[null,14,"All reports, letters and drawings referring to the project are on a letterhead and signed where stipulated or where they confirm a commitment","Please Confirm"]
[null,15,"All relevant communication with the GBCSA is included (including CIR Rulings and Technical Clarifications relevant to this project) ","Please Confirm"]
[null,16,"All drawings are still legible after scaling","Please Confirm"]
[null,17,"All inputs are consistent throughout the submission.","Please Confirm"]
[null,18,"Submission for each credit includes all documentation stipulated in the Technical Manual","Please Confirm"]
[null,19,"All credits claiming “na” have the required supporting documentation","Please Confirm"]
[null,20,"All documents are orientated in the same direction","Please Confirm"]
[null,21,"The AP declaration has been signed and submitted with the submission","Please Confirm"]
[null,22,"All drawings are still legible after scaling (especially small stamps, monitors/sensors etc.)","Please Confirm"]
[]
[null,null,"Submission delivery"]
[null,23,"All documents have been uploaded to the Certification Engine","Please Confirm"]
[]
[]
[null,"Name:"]
[]
[null,"Company:"]
[]
[null,"Signature:"]
[]
[null,"Note: If any of the above have not been complied with, the GBCSA reserves the right to return submission documentation to the project for re-submission and compliance with the above."]

{"sheet":"Applicant Declaration","index":6,"n_rows":11,"n_cols":2,"rows_kept":11,"cut":false,"hidden":false,"merged":[[10,1,22,1]]}
[]
[]
[null,"Green Star SA - Existing Building Performance v1"]
[]
[]
[]
[null,"Green Star SA Project Submission - Applicant Declaration"]
[null,"*This page must be printed and signed by the project applicant, and included in the general section of the project submission for Round 1 and Round 2."]
[]
[]
[null,"The Green Building Council of South Africa (GBCSA) aims to ensure that every Green Star SA submission is of a good quality and reflects the appropriate correct and true documentation on the project. In this regard, the GBCSA requires that all Green Star SA project applicants sign this acknowledgement and declaration letter. \n\nAcknowledgement and declaration by the Green Star SA project applicant:\n\nI/We,___________________________________________________, the person/s responsible for compiling the Green Star SA submission on behalf of ________________________________________________ (the Applicant), confirm that I/we have taken due care, and acknowledge and declare that (to the best of my/our knowledge):\n\n1. I/We have read and understood the relevant technical manual, the conditions of certification and any relevant Technical Clarifications, Errata and Credit Interpretation Requests. \n2. All documentation submitted by me/us on behalf of the Applicant towards this Green Star SA submission has been verified by the appropriate professional/s as being true, correct and accurate.\n3. All documentation submitted by me/us on behalf of the Applicant complies with all applicable legislation.\n4. All documents and reports submitted to me/us by the Applicant's project team are true and correct and accurately reflect the project’s contractual documentation (whether for a Design or As Built submission).\n5. All documents and reports which I/we have prepared for the submission are true and correct and accurately reflect the project’s performance.\n6. I/We have disclosed all applicable information relevant to the Application and undertake to disclose any further information that may influence the Application.\n\nWhere the GBCSA identifies any serious or systematic non-conformances on project documentation in a submission from the Applicant, the GBCSA has the right to query such non-conformance/s with the Applicant, at which point the Applicant is required to investigate this further with its project team, and provide a written response to the GBCSA by no later than 7 (seven) business days from the date on which the query was made to the Applicant by the GBCSA. If the response from the Applicant confirms that the information provided was incorrect, the Applicant's project team can:\n\na) For a Round 1 submission re-submit the correct information in Round 2 (as per assessor comments) or clarify that the information is not available and concede the point in Round 2\nb) For a Round 2 submission, confirm to the GBCSA the incorrect nature of the information submitted, in which event the incorrect information will be excluded from the submission documents counted in the Round 2 results.\n\nIf the response from the Applicant confirms that the information provided was correct, the Applicant's project team can, on behalf of the Applicant:\n\nc) In a Round 1 submission re-submit the correct information in Round 2.\nd) In a Round 2 submission, notify the GBCSA that such information was in fact correct, in which event the GBCSA will run this by the assessors for a final review before the results are published. \n\nWhere these processes are not followed and the relevant submission documents remain under question, the GBCSA will notify the Applicant, and the credit/s to which this information relates will be unobtainable. Where this incomplete process occurs more than once, with the Applicant, the GBCSA reserves the right not to accept any further submissions from this Applicant in future. At the first instance where this incomplete process occurs, the Applicant will be placed on twelve (12) months’ probation, during which time any similar infringement would allow the GBCSA to exercise its right to not accept any further submissions from the Applicant. Further to this, where the Applicant is a Green Star SA Accredited Professional (GSSA AP), the GBCSA reserves the right to remove the Applicant’s GSSA AP qualification and remove them from the GSSA AP registry on the GBCSA’s website. \n\nSignature: ___________________________________    Date: ___________________________________     \n\nName: ___________________________________      Company: ___________________________________    \n\nSignature of Applicant’s line manager warranting that s/he is duly authorised: ___________________________________                        \n\nName of Applicant’s line manager warranting that s/he is duly authorised: ___________________________________       \n"]

{"sheet":"Score Sheet","index":7,"n_rows":56,"n_cols":13,"rows_kept":56,"cut":false,"hidden":false,"merged":[[42,1,42,3],[23,1,23,3],[26,1,26,3],[29,1,29,3],[1,1,1,4],[11,1,11,3],[19,1,19,3],[0,1,0,4],[47,1,47,3],[3,1,3,5],[12,1,12,5],[20,1,20,5],[24,1,24,5],[27,1,27,5],[30,1,30,5],[34,1,34,5],[38,1,38,5],[43,1,43,5],[33,1,33,3],[37,1,37,3]]}
[null,"SCORE SHEET"]
[null,"Green Star SA - Existing Building Performance v1"]
[null,"Credit","Credit Name","Aim of Credit","Points Available","Points Available"]
[null,"Management Category ",null,null,null,null,null,null,null,null,null,0,"No Rating"]
[null,"EB-Man-1 ","Accredited Professional","To encourage and recognise the involvement of qualified individuals who can assist the owner/ facilities management team with the integration of Green Star SA aims and processes throughout the assessment of baselines, targeted improvements and interventions before and during the performance period to application, submission and certification.",1,{"$f":"IF(#REF!=\"na\",0,E5)","v":{"$error":"#REF!"}},null,null,null,null,null,10,"1 Star Rating"]
[null,"EB-Man-2","Certified Buildings ","To reward buildings that have shown previous environmental achievement through Green Star SA ratings.",1,{"$f":"IF(#REF!=\"na\",0,E6)","v":{"$error":"#REF!"}},null,null,null,null,null,20,"2 Star Rating"]
[null,"EB-Man-3","Building Management","To recognise management and operating procedures used to optimise the building’s environmental performance.",5,{"$f":"IF(#REF!=\"na\",0,E7)","v":{"$error":"#REF!"}},null,null,null,null,null,30,"3 Star Rating"]
[null,"EB-Man-4","Green Cleaning Performance","To encourage high performance cleaning practices, which reduce the exposure of building occupants and maintenance personnel to potentially hazardous chemical, biological and particulate contaminants that compromise indoor environmental quality, human health, building fabric and the natural environment. ",3.5,{"$f":"IF(#REF!=\"na\",0,E8)","v":{"$error":"#REF!"}},null,null,null,null,null,45,"4 Star Rating"]
[null,"EB-Man-5","Green Leasing","To recognise and encourage collaboration between the landlord and tenant in order to manage and operate the building along environmentally sustainable principles whilst realising mutual benefit.",6,{"$f":"IF(#REF!=\"na\",0,E9)","v":{"$error":"#REF!"}},null,null,null,null,null,60,"5 Star Rating"]
[null,"EB-Man-6","Ongoing Monitoring and Metering","To recognise operational practices which facilitate effective ongoing monitoring and metering of water and energy consumption.",2,{"$f":"IF(#REF!=\"na\",0,E10)","v":{"$error":"#REF!"}},null,null,null,null,null,75,"6 Star Rating"]
[null,"EB-Man-7","Learning Resources","To encourage and recognise initiatives and programs implemented in the building to facilitate education and advocacy in sustainability to building users, visitors and public.",2,{"$f":"IF(#REF!=\"na\",0,E11)","v":{"$error":"#REF!"}}]
[null,"Management credits ",null,null,{"$f":"SUM(E5:E11)","v":20.5},{"$f":"SUM(F5:F11)","v":{"$error":"#REF!"}}]
[null,"Indoor Environmental Quality Category "]
[null,"EB-IEQ-1","Indoor Air Quality ","To recognize the monitoring and control of indoor pollutants and thus help sustain the comfort and well-being of building occupants.",5,{"$f":"IF(#REF!=\"na\",0,E14)","v":{"$error":"#REF!"}}]
[null,"EB-IEQ-2","Lighting Comfort","To recognise operational practices that provide occupants with a high degree of lighting comfort.",2,{"$f":"IF(#REF!=\"na\",0,E15)","v":{"$error":"#REF!"}}]
[null,"EB-IEQ-3","Thermal Comfort","To recognise operational practices that monitor and maintain a high level of thermal comfort for building occupants.",2,{"$f":"IF(#REF!=\"na\",0,E16)","v":{"$error":"#REF!"}}]
[null,"EB-IEQ-4","Occupant Survey","To encourage the assessment of building occupants’ satisfaction as it relates to comfort and other building services performance issues.",2,{"$f":"IF(#REF!=\"na\",0,E17)","v":{"$error":"#REF!"}}]
[null,"EB-IEQ-5","Acoustic Comfort","To encourage operational practices that monitor acoustic comfort factors and strive to improve performance to ensure acoustic comfort for building occupants and minimize impact on surrounding buildings.",3,{"$f":"IF(#REF!=\"na\",0,E18)","v":{"$error":"#REF!"}}]
[null,"EB-IEQ-6","Daylight and Views","To recognise the introduction of naturally lit spaces which provide occupants in regular occupied spaces with access to appropriate daylight and quality views for the activities being performed during the performance period.",2,{"$f":"IF(#REF!=\"na\",0,E19)","v":{"$error":"#REF!"}}]
[null,"Indoor Environmental Quality credits ",null,null,{"$f":"SUM(E14:E19)","v":16},{"$f":"SUM(F14:F19)","v":{"$error":"#REF!"}}]
[null,"Energy Category "]
[null,"EB-Ene-1","Energy Consumption (GHGE)","To encourage the reduction of greenhouse gas emissions associated with the use of energy in building operations.",25,{"$f":"IF(#REF!=\"na\",0,E22)","v":{"$error":"#REF!"}}]
[null,"EB-Ene-2","Peak Electricity Demand","To recognise operational practices that reduces peak demand on electricity supply infrastructure.",2,{"$f":"IF(#REF!=\"na\",0,E23)","v":{"$error":"#REF!"}}]
[null,"Energy credits ",null,null,{"$f":"SUM(E22:E23)","v":27},{"$f":"SUM(F22:F23)","v":{"$error":"#REF!"}}]
[null,"Transport Category "]
[null,"EB-Tra-1","Alternative Transportation","To measure and promote/encourage the use of alternative transportation modes for commuting and as a result reduce pollution and land development impacts from automobile use.",4,{"$f":"IF(#REF!=\"na\",0,E26)","v":{"$error":"#REF!"}}]
[null,"Transport credits ",null,null,{"$f":"SUM(E26:E26)","v":4},{"$f":"SUM(F26:F26)","v":{"$error":"#REF!"}}]
[null,"Water Category "]
[null,"EB-Wat-1","Potable Water Management","To recognise efficient potable water use associated with building operations thus reducing the burden on potable water supply and wastewater systems.",12,{"$f":"IF(#REF!=\"na\",0,E29)","v":{"$error":"#REF!"}}]
[null,"Water credits ",null,null,{"$f":"SUM(E29:E29)","v":12},{"$f":"SUM(F29:F29)","v":{"$error":"#REF!"}}]
[null,"Materials Category "]
[null,"EB-Mat-1","Procurement and Purchasing ","To recognise procurement and purchasing practices which encourage use of products that are environmentally preferable.",4,{"$f":"IF(#REF!=\"na\",0,E32)","v":{"$error":"#REF!"}}]
[null,"EB-Mat-2","(Solid) Waste Management","To reward operational practices which reduce the amount of solid waste going to landfill. Such waste may be from typical building operations, including ongoing and durable goods, and from refurbishments, construction or demolition works. ",7,{"$f":"IF(#REF!=\"na\",0,E33)","v":{"$error":"#REF!"}}]
[null,"Materials credits ",null,null,{"$f":"SUM(E32:E33)","v":11},{"$f":"SUM(F32:F33)","v":{"$error":"#REF!"}}]
[null,"Land Use and Ecology Category "]
[null,"EB-Eco-1","Groundskeeping Practices","To encourage environmentally sensitive landscape, hard surfaces and building exterior maintenance practices that reduce the environmental impact and improve ecological value.",4,{"$f":"IF(#REF!=\"na\",0,E36)","v":{"$error":"#REF!"}}]
[null,"EB-Eco-2","Community Facilities","To encourage and recognise buildings who provide facilities for use and benefit by the local community.",1,{"$f":"IF(#REF!=\"na\",0,E37)","v":{"$error":"#REF!"}}]
[null,"Land use and Ecology credits ",null,null,{"$f":"SUM(E36:E37)","v":5},{"$f":"SUM(F36:F37)","v":{"$error":"#REF!"}}]
[null,"Emissions Category "]
[null,"EB-Emi-1","Refrigerants","To encourage operational practices that minimise the environmental impacts of refrigeration equipment.",2,{"$f":"IF(#REF!=\"na\",0,E40)","v":{"$error":"#REF!"}}]
[null,"EB-Emi-2","Legionella","To recognise and encourage building management systems which effectively manage the risk of Legionnaires’ disease.",1,{"$f":"IF(#REF!=\"na\",0,E41)","v":{"$error":"#REF!"}}]
[null,"EB-Emi-3","Storm Water","To recognise site-related practices which limiting the disruption of natural hydrology, minimize pollution and site deterioration.",1.5,{"$f":"IF(#REF!=\"na\",0,E42)","v":{"$error":"#REF!"}}]
[null,"Emissions  credits ",null,null,{"$f":"SUM(E40:E42)","v":4.5},{"$f":"SUM(F40:F42)","v":{"$error":"#REF!"}}]
[null,"Innovation Category "]
[null,"EB-Inn-1","Innovative Strategies & Technologies","To encourage and recognise pioneering initiatives, processes or strategies in sustainable building management and operations.","-",{"$f":"IF(#REF!=\"na\",0,E45)","v":{"$error":"#REF!"}}]
[null,"EB-Inn-2","Exceeding Green Star SA Benchmarks","To encourage and recognise projects that achieve environmental benefits in excess of the current Green Star SA benchmarks.","-",{"$f":"IF(#REF!=\"na\",0,E46)","v":{"$error":"#REF!"}}]
[null,"EB-Inn-3","Environmental Initiatives","To encourage and recognise sustainable building initiatives, processes or strategies that are currently outside of the scope of this Green Star SA rating tool but which have a substantial or significant environmental benefit.","-",{"$f":"IF(#REF!=\"na\",0,E47)","v":{"$error":"#REF!"}}]
[null,"Innovation  credits ",null,null,10,10]
[]
[null,null,null,"TOTAL POINTS AVAILABLE",{"$f":"E12+E20+E24+E27+E30+E34+E38+E43","v":100},{"$f":"F12+F20+F24+F27+F30+F34+F38+F43","v":{"$error":"#REF!"}}]
[]
[null,"NOTE:"]
[null,"1. Please note that the above score sheet does not take into account Not Applicable credits, and should not be used to "]
[null,"calculate the actual submission score - this is done by the certification engine."]
[null,"2. This sheet should not be completed  by projects submitting for certification because the certification engine "]
[null,"calculates the projct target and actual score."]